Workbook

Sheet D 11-12
A1: 0 | B1: 0 | D1: 0 | E1: 0 | F1: 0 | G1: 0 | H1: 0
A2: Pl. | B2: Namn | C2: Född | D2: klubb | E2: Hjorten åk 1 | F2: Hjorten åk 2 | G2: Hjorten åk 1 | H2: Hjorten åk 2 | I2: Nybro åk 1 | J2: Nybro åk 2 | K2: Jönköping åk 1 | L2: Jönköping åk 2 | M2: Jönköping åk 1 | N2: Jönköping åk 2 | O2: Fjätervålen race 1 | P2: Fjätervålen race 2 | Q2: Sävsjö åk 1 | R2: Sävsjö åk 2 | S2: Sävsjö åk 1 | T2: Sävsjö åk 2 | U2: Totalpoäng | V2: 8 bästa åken
B3: D 11-12 | D3: 2026 | E3: 2026-01-23 | F3: 2026-01-23 | G3: 2026-01-24 | H3: 2026-01-24 | I3: 2026-01-25 | J3: 2026-01-25 | K3: 2026-01-30 | L3: 2026-01-30 | M3: 2026-01-31 | N3: 2026-01-31 | O3: 2026-02-07 | P3: 2026-02-07 | Q3: 2026-02-22 | R3: 2026-02-22 | S3: 2026-02-26 | T3: 2026-02-26
A4: 1 | B4: Astrid Hagelvik | C4: 2015 | D4: IFK Sävsjö | E4: 80 | F4: 100 | G4: 80 | H4: 80 | I4: 100 | J4: 100 | K4: 100 | L4: 100 | M4: 100 | N4: 100 | O4: 70 | P4: 70 | Q4: 70 | R4: 70 | S4: 80 | T4: 80 | U4: =SUM(E4:T4) -> 1380 | V4: 780
A5: 2 | B5: Elsa Andersson | C5: 2015 | D5: IFK Sävsjö | E5: 100 | F5: 80 | G5: 100 | H5: 100 | I5: 80 | J5: 80 | K5: 70 | L5: 70 | M5: DNF | N5: 55 | O5: 100 | P5: 80 | Q5: 60 | R5: 80 | S5: 70 | T5: 60 | U5: =SUM(E5:T5) -> 1185 | V5: 720
A6: 3 | B6: Emma Winklbauer | C6: 2014 | D6: Jönköpings SLK | K6: DNF | L6: 80 | M6: DNF | N6: 80 | O6: 80 | P6: 100 | Q6: 80 | R6: 60 | S6: 100 | T6: 100 | U6: =SUM(K6:T6) -> 680 | V6: 680
A7: 4 | B7: Ella Hoof | C7: 2015 | D7: Jönköpings SLK | K7: 55 | L7: 50 | M7: DNF | N7: 70 | Q7: 100 | R7: 100 | S7: 60 | T7: 70 | U7: =SUM(K7:T7) -> 505 | V7: 505
A8: 5 | B8: My Almqvist | C8: 2015 | D8: Jönköpings SLK | K8: 48 | L8: 46 | M8: 80 | N8: 60 | Q8: 55 | R8: 55 | S8: 50 | T8: 55 | U8: =SUM(K8:T8) -> 449 | V8: 449
A9: 6 | B9: Ellie Widegren | C9: 2015 | D9: Jönköpings SLK | K9: 50 | L9: 48 | M9: 70 | N9: 50 | Q9: 50 | R9: 50 | S9: 48 | T9: 46 | U9: =SUM(K9:T9) -> 412 | V9: 412
A10: 7 | B10: Alva Zachrisson | C10: 2014 | D10: Jönköpings SLK | K10: 60 | L10: 55 | O10: 60 | P10: 60 | S10: 55 | T10: 50 | U10: =SUM(K10:T10) -> 340
A11: 8 | B11: Stella Tornert | C11: 2015 | D11: IFK Sävsjö | Q11: 48 | R11: 48 | S11: 46 | T11: 48 | U11: =SUM(Q11:T11) -> 190
A12: 9 | B12: Céline Ghayoomi | C12: 2015 | D12: IFK Sävsjö | M12: DNF | N12: 48 | Q12: 46 | R12: DNF | S12: 44 | T12: 44 | U12: =SUM(E12:T12) -> 182
A13: 10 | B13: Hanna Nilhammer | C13: 2015 | D13: Jönköpings SLK | K13: 80 | L13: 60 | U13: =SUM(K13:T13) -> 140
A14: 11 | B14: Emma Blad | C14: 2015 | D14: IFK Sävsjö | Q14: 44 | R14: 46 | U14: =SUM(Q14:T14) -> 90
A15: 12 | B15: Agnes Älverdal | C15: 2015 | D15: Jönköpings SLK | K15: DNF | L15: DNF

Sheet H 11-12
A2: Pl. | B2: Namn | C2: Född | D2: klubb | E2: Hjorten åk 1 | F2: Hjorten åk 2 | G2: Hjorten åk 1 | H2: Hjorten åk 2 | I2: Nybro åk 1 | J2: Nybro åk 2 | K2: Jönköping åk 1 | L2: Jönköping åk 2 | M2: Jönköping åk 1 | N2: Jönköping åk 2 | O2: Fjätervålen race 1 | P2: Fjätervålen race 2 | Q2: Sävsjö åk 1 | R2: Sävsjö åk 2 | S2: Sävsjö åk 1 | T2: Sävsjö åk 2 | U2: Totalpoäng | V2: 8 bästa åken
B3: H 11-12 | D3: 2026 | E3: 2026-01-23 | F3: 2026-01-23 | G3: 2026-01-24 | H3: 2026-01-24 | I3: 2026-01-25 | J3: 2026-01-25 | K3: 2026-01-30 | L3: 2026-01-30 | M3: 2026-01-31 | N3: 2026-01-31 | O3: 2026-02-07 | P3: 2026-02-07 | Q3: 2026-02-22 | R3: 2026-02-22 | S3: 2026-02-26 | T3: 2026-02-26
A4: 1 | B4: Lucas Kiland | C4: 2014 | D4: Jönköpings SLK | E4: 70 | F4: 100 | G4: 80 | H4: 80 | K4: 80 | L4: 80 | M4: 100 | N4: 100 | O4: 100 | P4: DNF | Q4: 80 | R4: 70 | S4: 70 | T4: 80 | U4: =SUM(E4:T4) -> 1090 | V4: 720
A5: 2 | B5: William Öjersjö | C5: 2014 | D5: Nybro SLK | E5: 100 | F5: 80 | G5: 100 | H5: 100 | I5: 100 | J5: 100 | K5: 60 | L5: 70 | M5: DNF | N5: DNF | S5: 100 | T5: 60 | U5: =SUM(E5:T5) -> 870 | V5: 750
A6: 3 | B6: Elis Hertz | C6: 2014 | D6: Hjortens SK | E6: 80 | F6: 70 | G6: 60 | H6: 60 | O6: 80 | P6: 80 | Q6: 100 | R6: 80 | S6: 55 | T6: DNF | U6: =SUM(E6:T6) -> 665 | V6: 610
A7: 4 | B7: Carl Hofwing Syrén | C7: 2014 | D7: Jönköpings SLK | G7: 70 | H7: 70 | K7: 70 | L7: 60 | M7: 80 | N7: 80 | O7: 70 | P7: 100 | S7: 60 | T7: 70 | U7: =SUM(E7:T7) -> 730 | V7: 610
A8: 5 | B8: Lowe Almström | C8: 2015 | D8: IFK Sävsjö | G8: 55 | H8: 55 | K8: 100 | L8: 100 | Q8: DNF | R8: 100 | S8: 80 | T8: 100 | U8: =SUM(E8:T8) -> 590 | V8: 590
A9: 6 | B9: Otis Arwedson | C9: 2015 | D9: Jönköpings SLK | E9: 60 | F9: 60 | G9: 50 | H9: 50 | I9: 80 | J9: 80 | K9: 48 | L9: 50 | M9: DNF | N9: 55 | O9: 55 | P9: 60 | S9: 48 | T9: 50 | U9: =SUM(E9:T9) -> 746 | V9: 500
A10: 7 | B10: Maksymilian Majdanski | C10: 2015 | D10: IFK Sävsjö | K10: 46 | L10: 46 | M10: 55 | N10: DNF | Q10: 70 | R10: 60 | S10: 46 | T10: 55 | U10: =SUM(K10:T10) -> 378 | V10: 378
A11: 8 | B11: Hugo Nord | C11: 2015 | D11: Jönköpings SLK | K11: 55 | L11: 55 | M11: 70 | N11: 60 | O11: 60 | P11: 70 | U11: =SUM(K11:T11) -> 370
A12: 9 | B12: Noah Markusson | C12: 2014 | D12: Jönköpings SLK | K12: 44 | L12: 44 | M12: 60 | N12: 50 | Q12: 60 | R12: 55 | U12: =SUM(K12:T12) -> 313
A13: 10 | B13: Amos Markström | C13: 2014 | D13: Jönköpings SLK | K13: 50 | L13: 48 | M13: DNF | N13: 70 | S13: 50 | T13: DNF | U13: =SUM(K13:T13) -> 218
A14: 11 | B14: Eddie Lind | C14: 2014 | D14: IFK Sävsjö | Q14: 55 | R14: 50 | U14: =SUM(E14:T14) -> 105
A15: 12 | B15: Lorenzo Hammarstedt | C15: 2014 | D15: IFK Sävsjö | Q15: DNF | R15: 48 | U15: =SUM(E15:T15) -> 48

Sheet D 13-14
A1: Pl. | B1: Namn | C1: Född | D1: klubb | E1: Hjorten åk 1 | F1: Hjorten åk 2 | G1: Hjorten åk 1 | H1: Hjorten åk 2 | I1: Nybro åk 1 | J1: Nybro åk 2 | K1: Jönköping åk 1 | L1: Jönköping åk 2 | M1: Jönköping åk 1 | N1: Jönköping åk 2 | O1: Fjätervålen race 1 | P1: Fjätervålen race 2 | Q1: Sävsjö åk 1 | R1: Sävsjö åk 2 | S1: Sävsjö åk 1 | T1: Sävsjö åk 2 | U1: Totalpoäng | V1: 8 bästa åken
B2: D 13-14 | D2: 2026 | E2: 2026-01-23 | F2: 2026-01-23 | G2: 2026-01-24 | H2: 2026-01-24 | I2: 2026-01-25 | J2: 2026-01-25 | K2: 2026-01-30 | L2: 2026-01-30 | M2: 2026-01-31 | N2: 2026-01-31 | O2: 2026-02-07 | P2: 2026-02-07 | Q2: 2026-02-22 | R2: 2026-02-22 | S2: 2026-02-26 | T2: 2026-02-26
A3: 1 | B3: Ellen Levin | C3: 2012 | D3: Nybro SLK | E3: 100 | F3: 100 | G3: 100 | H3: 100 | I3: 100 | J3: 100 | K3: 100 | L3: 100 | M3: 100 | N3: 100 | S3: 100 | T3: 100 | U3: =SUM(E3:T3) -> 1200 | V3: 800
A4: 2 | B4: Malva Österberg | C4: 2013 | D4: Hjortens SK | E4: 80 | F4: 80 | G4: 80 | H4: 80 | I4: 80 | J4: 80 | K4: 80 | L4: 80 | M4: 80 | N4: 80 | O4: 100 | P4: 100 | Q4: 100 | R4: 100 | S4: DNF | T4: 70 | U4: 1270 | V4: 720
A5: 3 | B5: Meja Almström | C5: 2012 | D5: IFK Sävsjö | G5: 70 | H5: 70 | K5: 70 | L5: 70 | M5: 70 | N5: 70 | Q5: 80 | R5: 80 | S5: 80 | T5: 80 | U5: =SUM(E5:T5) -> 740 | V5: 600
A6: 4 | B6: Vilma Ljungström | C6: 2013 | D6: IFK Sävsjö | E6: 55 | F6: 50 | G6: 55 | H6: 46 | I6: 70 | J6: 70 | K6: 46 | L6: 55 | M6: 55 | N6: 60 | O6: 70 | P6: 80 | Q6: 60 | R6: 70 | S6: 55 | T6: 50 | U6: =SUM(E6:T6) -> 947 | V6: 535
A7: 5 | B7: Milla Wirefeldt | C7: 2013 | D7: Nybro SLK | E7: 70 | F7: 60 | G7: 50 | H7: 50 | I7: 48 | J7: 60 | K7: 60 | L7: 60 | M7: 48 | N7: 55 | S7: 70 | T7: 55 | U7: =SUM(E7:T7) -> 686 | V7: 490
A8: 6 | B8: Klara Franzén | C8: 2013 | D8: Nybro SLK | E8: 60 | F8: 55 | G8: 44 | H8: 60 | I8: 55 | J8: 50 | K8: 55 | L8: 50 | M8: 50 | N8: 50 | Q8: 48 | R8: 55 | S8: DNF | T8: DNF | U8: =SUM(E8:T8) -> 632 | V8: 440
A9: 7 | B9: Alma Ljungström | C9: 2012 | D9: IFK Sävsjö | K9: 44 | M9: 60 | N9: 48 | O9: 80 | P9: DNF | Q9: 70 | R9: 60 | S9: 50 | T9: DNF | U9: =SUM(K9:T9) -> 412 | V9: 412
A10: 8 | B10: Siri Lindström | C10: 2012 | D10: Hjortens SK | G10: 60 | H10: 55 | O10: 60 | P10: 70 | Q10: 55 | R10: DNF | S10: DNF | T10: DNF | U10: =SUM(E10:T10) -> 300 | V10: 300
A11: 9 | B11: Lena Majdanska | C11: 2013 | D11: IFK Sävsjö | K11: DNF | L11: 44 | M11: 46 | N11: 46 | Q11: 50 | R11: 50 | S11: 60 | T11: 60 | U11: =SUM(K11:T11) -> 356 | V11: 356
A12: 10 | B12: Niki Gustafsson | C12: 2012 | D12: Nybro SLK | G12: 46 | H12: 48 | I12: 50 | J12: DNF | K12: 48 | L12: 48 | M12: DNF | N12: 44 | U12: =SUM(E12:T12) -> 284 | V12: 284
A13: 11 | B13: Ingrid Vestberg | C13: 2012 | D13: Nybro SLK | E13: 48 | F13: 48 | G13: 42 | H13: 42 | I13: 60 | J13: 55 | U13: =SUM(E13:T13) -> 295
A14: 12 | B14: Ebba Lundmark | C14: 2013 | D14: Hjortens SK | E14: 50 | F14: 70 | G14: 48 | H14: 44 | K14: 50 | L14: 46 | U14: =SUM(E14:T14) -> 308
A15: 13 | B15: Isabelle Öjersjö | C15: 2012 | D15: Nybro SLK | K15: 42 | L15: 42 | U15: =SUM(K15:T15) -> 84
A16: 14
A17: 15

Sheet H 13-14
A2: Pl. | B2: Namn | C2: Född | D2: klubb | E2: Hjorten åk 1 | F2: Hjorten åk 2 | G2: Hjorten åk 1 | H2: Hjorten åk 2 | I2: Nybro åk 1 | J2: Nybro åk 2 | K2: Jönköping åk 1 | L2: Jönköping åk 2 | M2: Jönköping åk 1 | N2: Jönköping åk 2 | O2: Fjätervålen race 1 | P2: Fjätervålen race 2 | Q2: Sävsjö åk 1 | R2: Sävsjö åk 2 | S2: Sävsjö åk 1 | T2: Sävsjö åk 2 | U2: Totalpoäng | V2: 8 bästa åken
B3: H 13-14 | D3: 2026 | E3: 2026-01-23 | F3: 2026-01-23 | G3: 2026-01-24 | H3: 2026-01-24 | I3: 2026-01-25 | J3: 2026-01-25 | K3: 2026-01-30 | L3: 2026-01-30 | M3: 2026-01-31 | N3: 2026-01-31 | O3: 2026-02-07 | P3: 2026-02-07 | Q3: 2026-02-22 | R3: 2026-02-22 | S3: 2026-02-26 | T3: 2026-02-26
A4: 1 | B4: Helmer Pleijert | C4: 2013 | D4: Hjortens SK | E4: 100 | F4: 80 | G4: 100 | H4: 80 | K4: 80 | L4: 80 | M4: DNF | N4: DNF | Q4: DNF | R4: 80 | S4: 100 | T4: DNF | U4: =SUM(E4:T4) -> 700 | V4: 700
A5: 2 | B5: Mio Henricson | C5: 2013 | D5: Jönköpings SLK | E5: 70 | F5: 70 | G5: 70 | H5: 70 | K5: 70 | L5: 70 | M5: 70 | N5: 70 | O5: 100 | P5: DNF | Q5: 80 | R5: 60 | S5: 70 | T5: 80 | U5: =SUM(E5:T5) -> 950 | V5: 610
A6: 3 | B6: Oscar Johansson | C6: 2012 | D6: Jönköpings SLK | K6: 100 | L6: 100 | M6: 100 | N6: 100 | Q6: DNF | R6: 100 | U6: =SUM(K6:T6) -> 500
A7: 4 | B7: Ruben Bylander | C7: 2013 | D7: Jönköpings SLK | K7: 60 | L7: 60 | M7: DNF | N7: 80 | Q7: 100 | R7: 70 | U7: =SUM(K7:T7) -> 370
A8: 5 | B8: August Springfeldt | C8: 2012 | D8: Jönköpings SLK | E8: 80 | F8: 100 | G8: 80 | H8: 100 | U8: =SUM(E8:T8) -> 360
A9: 5 | B9: Sixten Ståhlgren | C9: 2013 | D9: IFK Sävsjö | E9: 60 | F9: 60 | M9: 80 | N9: 60 | P9: 100 | S9: 80 | T9: 100 | U9: =SUM(E9:T9) -> 540
A10: 7 | B10: Melker Hellström | C10: 2012 | D10: Nybro SLK | I10: 100 | J10: 100 | U10: =SUM(E10:T10) -> 200
A11: 8 | B11: Wictor Ahlström | C11: 2013 | D11: IFK Sävsjö | Q11: 70 | R11: 55 | U11: =SUM(E11:T11) -> 125

Sheet 15-16
A2: Pl. | B2: Namn | C2: Född | D2: klubb | E2: Hjorten åk 1 | F2: Hjorten åk 2 | G2: Hjorten åk 1 | H2: Hjorten åk 2 | I2: Nybro åk 1 | J2: Nybro åk 2 | K2: Jönköping åk 1 | L2: Jönköping åk 2 | M2: Jönköping åk 1 | N2: Jönköping åk 2 | O2: Sävsjö åk 1 | P2: Sävsjö åk 2 | Q2: Sävsjö åk 1 | R2: Sävsjö åk 2 | S2: Totalpoäng | T2: 7 bästa åken
B3: D 15-16 | D3: 2026 | E3: 2026-01-23 | F3: 2026-01-23 | G3: 2026-01-24 | H3: 2026-01-24 | I3: 2026-01-25 | J3: 2026-01-25 | K3: 2026-01-30 | L3: 2026-01-30 | M3: 2026-01-31 | N3: 2026-01-31 | O3: 2026-02-22 | P3: 2026-02-22 | Q3: 2026-02-26 | R3: 2026-02-26
A4: 1 | B4: Meja Lundqvist | C4: 2011 | D4: Hjortens SK | E4: 70 | F4: 60 | G4: 70 | H4: 70 | I4: DNF | J4: 100 | K4: 80 | L4: 100 | M4: 100 | N4: 100 | O4: 100 | P4: 70 | Q4: 100 | R4: DNF | S4: =SUM(E4:R4) -> 1020 | T4: 680
A5: 2 | B5: Maja Kullberg | C5: 2010 | D5: Hjortens SK | E5: 80 | F5: 80 | G5: 100 | H5: 60 | I5: 80 | J5: 70 | K5: 70 | L5: 80 | O5: DNF | P5: 50 | S5: =SUM(E5:R5) -> 670 | T5: 560
A6: 3 | B6: Arwen Österberg | C6: 2011 | D6: Hjortens SK | E6: 60 | F6: 55 | G6: 55 | H6: 55 | O6: 70 | P6: 60 | Q6: 80 | R6: 100 | S6: =SUM(E6:R6) -> 535 | T6: 480
A7: 4 | B7: Margot Gard | C7: 2011 | D7: Jönköpings SLK | K7: 100 | L7: 70 | M7: 80 | N7: 80 | O7: 80 | P7: 80 | S7: =SUM(E7:R7) -> 490
A8: 5 | B8: Felicia Karlsson | C8: 2011 | D8: Finnvedens SLK | E8: 100 | F8: 100 | G8: 80 | H8: 100 | O8: DNF | P8: 100 | S8: =SUM(E8:R8) -> 480
A9: 6 | B9: Tova Franzén | C9: 2011 | D9: Nybro SLK | I9: 100 | J9: 80 | O9: 60 | P9: 55 | Q9: 70 | R9: 80 | S9: =SUM(E9:R9) -> 445
A10: 7 | B10: Lisa Kullberg | C10: 2010 | D10: Hjortens SK | E10: 55 | F10: 70 | G10: 60 | H10: 80 | K10: 55 | L10: 55 | S10: =SUM(E10:R10) -> 375
A11: 8 | B11: Sara Kullberg | C11: 2010 | D11: Hjortens SK | E11: 50 | F11: 50 | G11: 50 | H11: 50 | O11: 55 | P11: 48 | S11: =SUM(E11:R11) -> 303
A12: 9 | B12: Ester Bengtsson | C12: 2011 | D12: IFK Sävsjö | E12: 48 | F12: 48 | K12: 60 | L12: 60 | S12: =SUM(E12:R12) -> 216
A13: 10 | B13: Sofie Parker | C13: 2011 | D13: Nybro SLK | I13: DNF | J13: DNF
A18: Pl. | B18: Namn | C18: Född | D18: klubb | E18: Hjorten åk 1 | F18: Hjorten åk 2 | G18: Hjorten åk 1 | H18: Hjorten åk 2 | I18: Nybro åk 1 | J18: Nybro åk 2 | K18: Jönköping åk 1 | L18: Jönköping åk 2 | M18: Jönköping åk 1 | N18: Jönköping åk 2 | O18: Sävsjö åk 1 | P18: Sävsjö åk 2 | Q18: Sävsjö åk 1 | R18: Sävsjö åk 2 | S18: Totalpoäng | T18: 7 bästa åken
B19: H 15-16 | D19: 2026 | E19: 2026-01-23 | F19: 2026-01-23 | G19: 2026-01-24 | H19: 2026-01-24 | I19: 2026-01-25 | J19: 2026-01-25 | K19: 2026-01-30 | L19: 2026-01-30 | M19: 2026-01-31 | N19: 2026-01-31 | O19: 2026-02-22 | P19: 2026-02-22 | Q19: 2026-02-26 | R19: 2026-02-26
A20: 1 | B20: Albert Åkesson | C20: 2011 | D20: Nybro SLK | E20: 100 | F20: 100 | G20: 100 | H20: 100 | I20: DNF | J20: 100 | O20: 70 | P20: 80 | Q20: 80 | R20: 80 | S20: =SUM(E20:R20) -> 810 | T20: 740
A21: 2 | B21: Filip Carlsson | C21: 2011 | D21: Jönköpings SLK | K21: 80 | L21: 70 | M21: 80 | N21: 100 | O21: 100 | P21: 70 | S21: =SUM(K21:R21) -> 500
A22: 3 | B22: Pontus Essén | C22: 2010 | D22: Jönköpings SLK | K22: 70 | L22: 80 | M22: 70 | N22: 80 | O22: 80 | P22: 60 | S22: =SUM(K22:R22) -> 440
A23: 4 | B23: Aston Corne | C23: 2011 | D23: Jönköpings SLK | K23: 100 | L23: 100 | M23: 100 | N23: DNF | S23: =SUM(K23:R23) -> 300
A24: 4 | B24: Gusten Pleijert | C24: 2010 | D24: Hjortens SK | O24: DNF | P24: 100 | Q24: 100 | R24: 100 | S24: =SUM(E24:R24) -> 300
A25: 6 | B25: Oskar Andersson | C25: 2011 | D25: Jönköpings SLK | K25: 60 | L25: 60 | O25: 60 | P25: 55 | S25: =SUM(K25:R25) -> 235
